bitfinex/quotes_BTCUSD_20250221
["timestamp","ask_amount","ask_price","bid_price","bid_amount"]
[1740097887600,0.152299,98491.0,98486.0,0.95225061]
[1740097887746,0.152299,98491.0,98486.0,0.94825061]
[1740097887945,0.152299,98491.0,98487.0,0.5384]
[1740097888160,0.17128764,98490.0,98487.0,0.5384]
[1740097889285,0.152302,98489.0,98487.0,0.5384]
[1740097889503,0.01898864,98490.0,98487.0,0.5384]
[1740097889888,0.152298,98491.0,98487.0,0.5384]
[1740097890418,0.25264569,98500.0,98487.0,0.5414]
[1740097890622,0.25264569,98500.0,98490.0,0.1040276]
[1740097890980,0.152298,98491.0,98490.0,0.1040276]
[1740097891184,0.152302,98488.0,98487.0,0.5384]
[1740097891390,0.152302,98488.0,98487.0,0.5444]
[1740097891605,0.152302,98488.0,98487.0,0.5414]
[1740097892020,0.152302,98488.0,98487.0,0.5384]
[1740097892431,0.1712995,98488.0,98487.0,0.5384]
[1740097893763,0.1712995,98488.0,98487.0,0.5424]
[1740097893965,0.1712995,98488.0,98487.0,0.82694821]
[1740097894389,0.1712995,98488.0,98487.0,0.83194821]
[1740097897056,0.1712995,98488.0,98487.0,0.83074821]
[1740097897528,0.17131885,98488.0,98487.0,0.83074821]
[1740097909520,0.152302,98488.0,98487.0,0.83074821]
[1740097909950,0.1713292,98488.0,98487.0,0.83074821]
[1740097911239,0.0190272,98488.0,98487.0,0.98305221]
[1740097911450,0.0190272,98488.0,98487.0,1.06125221]
[1740097912308,0.0008511,98491.0,98490.0,0.152299]
[1740097913232,0.0008511,98491.0,98487.0,0.90394821]
[1740097913636,0.0008511,98491.0,98490.0,0.003]
[1740097913847,0.0008511,98491.0,98490.0,0.006]
[1740097914053,0.0008511,98491.0,98490.0,0.003]
[1740097914698,0.0008511,98491.0,98487.0,0.89994821]
[1740097914945,0.1531491,98491.0,98490.0,0.003]
[1740097916196,0.0008511,98491.0,98490.0,0.003]
[1740097916597,0.01988029,98491.0,98490.0,0.003]
[1740097917414,0.01988029,98491.0,98490.0,0.006]
[1740097917560,0.01988029,98491.0,98490.0,0.82774821]
[1740097919309,0.0008511,98491.0,98490.0,0.82774821]
[1740097923632,0.0008511,98491.0,98490.0,0.98004721]
[1740097926037,0.0008511,98491.0,98490.0,1.10624721]
[1740097926245,0.000851,98505.0,98504.0,0.228978]
[1740097926475,0.000851,98505.0,98504.0,0.277378]
[1740097926889,0.000851,98505.0,98504.0,1.09827511]
[1740097928062,0.01986376,98505.0,98504.0,1.09827511]
[1740097928268,0.01986376,98505.0,98504.0,1.10327511]
[1740097928470,0.01986376,98505.0,98504.0,1.09827511]
[1740097929093,0.000851,98505.0,98504.0,1.09827511]
[1740097929274,0.000851,98505.0,98504.0,1.10527511]
[1740097929694,0.000851,98505.0,98504.0,1.09827511]
[1740097929937,0.000851,98505.0,98504.0,1.10427511]
[1740097930153,0.000851,98505.0,98504.0,1.10527511]
[1740097930354,0.000851,98505.0,98504.0,1.11227511]
[1740097930509,0.000851,98505.0,98504.0,1.10527511]
[1740097930896,0.000851,98505.0,98504.0,1.11227511]
[1740097934194,0.000851,98505.0,98504.0,1.10527511]
[1740097934601,0.000851,98505.0,98504.0,1.11227511]
[1740097934948,0.000851,98505.0,98504.0,1.10527511]
[1740097935356,0.000851,98505.0,98504.0,1.2079208]
[1740097935566,0.000851,98505.0,98504.0,1.2149208]
[1740097938415,0.21809124,98508.0,98507.0,0.51516821]
[1740097938620,0.21813439,98508.0,98507.0,0.51516821]
[1740097939692,0.21813439,98508.0,98507.0,0.52916821]
[1740097942648,0.21813439,98508.0,98507.0,2.0372139]
[1740097943771,0.21813439,98508.0,98507.0,2.0302139]
[1740097944169,0.21813439,98508.0,98507.0,2.0372139]
[1740097944381,0.21813439,98508.0,98507.0,2.0302139]
[1740097944556,0.21813439,98508.0,98507.0,2.0372139]
[1740097945613,0.21813439,98508.0,98507.0,2.05702897]
[1740097946485,0.21898539,98508.0,98507.0,2.05702897]
[1740097947397,0.0008513,98523.0,98514.0,0.152262]
[1740097947598,0.00089453,98523.0,98513.0,0.37899072]
[1740097947807,0.00089453,98523.0,98522.0,0.15225]
[1740097947919,0.00089453,98523.0,98522.0,1.01805]
[1740097949389,0.00089453,98523.0,98522.0,1.02105]
[1740097950306,0.00089453,98523.0,98522.0,1.02505]
[1740097951158,0.26253734,98542.0,98522.0,0.8728]
[1740097951332,0.15222,98542.0,98536.0,0.152227]
[1740097951541,0.0008511,98543.0,98534.0,0.202975]
[1740097951744,0.0008511,98543.0,98542.0,0.152219]
[1740097953164,0.0008511,98543.0,98542.0,0.157219]
[1740097954197,0.0008511,98543.0,98542.0,0.164219]
[1740097955402,0.0008511,98543.0,98542.0,0.159219]
[1740097955601,0.0008511,98543.0,98542.0,0.163219]
[1740097956141,0.0008511,98543.0,98542.0,0.011]
[1740097956370,0.0008511,98543.0,98542.0,0.8828]
[1740097956558,0.0008511,98543.0,98542.0,1.035019]
[1740097957158,0.0008511,98543.0,98542.0,0.8828]
[1740097957304,0.0008511,98543.0,98542.0,1.035019]
[1740097957690,0.0008511,98543.0,98542.0,0.8828]
[1740097957970,0.0008511,98543.0,98542.0,1.035019]
[1740097958966,0.1530681,98543.0,98542.0,0.8828]
[1740097959155,0.2352681,98543.0,98542.0,0.8828]
[1740097959314,0.2819681,98543.0,98542.0,0.8828]
[1740097960790,0.39915464,98543.0,98542.0,0.8828]
[1740097961196,0.24693764,98543.0,98542.0,0.8828]
[1740097961432,0.39915464,98543.0,98542.0,0.8828]
[1740097961593,0.39915464,98543.0,98542.0,0.8728]
[1740097962020,0.39915464,98543.0,98542.0,0.8748]
[1740097962224,0.39915464,98543.0,98542.0,0.3376]
[1740097962619,0.39915464,98543.0,98542.0,0.3326]
[1740097962820,0.39915464,98543.0,98542.0,0.3316]
[1740097963201,0.39915464,98543.0,98542.0,0.3326]
[1740097963403,0.2819681,98543.0,98542.0,0.3296]
[1740097963627,0.2819681,98543.0,98542.0,0.3346]
[1740097963828,0.0008511,98543.0,98542.0,0.3346]
[1740097964068,0.0008511,98543.0,98542.0,0.486819]
[1740097965488,0.0008511,98543.0,98542.0,1.021019]
[1740097965645,0.0008511,98543.0,98542.0,1.018019]
[1740097965808,0.0008511,98543.0,98542.0,0.8728]
[1740097966010,0.45401379,98543.0,98542.0,0.8798]
[1740097966212,0.0008511,98543.0,98542.0,0.8798]
[1740097966642,0.0008511,98543.0,98542.0,0.8728]
[1740097966848,0.0008511,98543.0,98542.0,1.032019]
[1740097967279,0.0008511,98543.0,98542.0,1.025019]
[1740097967637,0.0008511,98543.0,98542.0,0.8798]
[1740097967853,0.0008511,98543.0,98542.0,1.032019]
[1740097968057,0.0008511,98543.0,98542.0,1.025019]
[1740097968260,0.0008511,98543.0,98542.0,1.032019]
[1740097968879,0.0008511,98543.0,98542.0,1.025019]
[1740097969083,0.0008511,98543.0,98542.0,1.018019]
[1740097969281,0.0008511,98543.0,98542.0,1.025019]
[1740097969495,0.0008511,98543.0,98542.0,1.032019]
[1740097969864,0.0008511,98543.0,98542.0,1.025019]
[1740097970071,0.0008511,98543.0,98542.0,1.032019]
[1740097970271,0.0008511,98543.0,98542.0,0.8798]
[1740097971267,0.0008511,98543.0,98542.0,1.032019]
[1740097982202,0.0008511,98543.0,98542.0,0.8798]
[1740097983202,0.2024865,98555.0,98542.0,1.032019]
[1740097983542,0.1522,98554.0,98544.0,0.152214]
[1740097983742,0.15232873,98555.0,98545.0,0.152213]
[1740097984169,0.15232873,98555.0,98545.0,0.150561]
[1740097984537,0.00012973,98555.0,98542.0,0.8758]
[1740097984705,0.00012973,98555.0,98546.0,0.152211]
[1740097985242,0.1522,98554.0,98545.0,0.10690401]
[1740097985419,0.00012973,98555.0,98545.0,0.003]
[1740097985803,0.1522,98554.0,98545.0,0.003]
[1740097986168,0.1522,98554.0,98546.0,0.004]
[1740097986375,0.00012973,98555.0,98546.0,0.156211]
[1740097986585,0.15232873,98555.0,98546.0,0.152211]
[1740097987177,0.15232873,98555.0,98542.0,1.068758]
[1740097987178,0.00012973,98555.0,98542.0,0.8658]
[1740097987502,0.15232873,98555.0,98542.0,0.8688]
[1740097987734,0.00012973,98555.0,98542.0,0.8658]
[1740097987906,0.152208,98549.0,98546.0,0.003]
[1740097988491,0.152208,98549.0,98542.0,0.8658]
[1740097988705,0.152208,98549.0,98542.0,0.8698]
[1740097988910,0.152208,98549.0,98543.0,0.8658]
[1740097989150,0.152207,98550.0,98543.0,0.8658]
[1740097989566,0.15221,98548.0,98546.0,0.005]
[1740097989985,0.152211,98547.0,98546.0,0.005]
[1740097990196,0.200311,98547.0,98546.0,0.005]
[1740097990881,0.0481,98547.0,98543.0,0.8658]
[1740097991101,0.152216,98544.0,98543.0,0.8658]
[1740097991288,0.25486169,98544.0,98543.0,0.8718]
[1740097991586,0.35020254,98544.0,98543.0,0.8718]
[1740097991795,0.35020254,98544.0,98543.0,0.8658]
[1740097991999,0.35020254,98544.0,98543.0,0.8698]
[1740097992201,0.35020254,98544.0,98543.0,0.8748]
[1740097992410,0.35020254,98544.0,98543.0,0.8708]
[1740097992579,0.35020254,98544.0,98543.0,0.8658]
[1740097992744,0.50020254,98544.0,98543.0,0.8658]
[1740097993545,0.50020254,98544.0,98543.0,0.8688]
[1740097993988,0.50020254,98544.0,98543.0,0.8728]
[1740097996846,0.50020254,98544.0,98543.0,0.8698]
[1740097997388,0.51040861,98544.0,98543.0,0.8718]
[1740097997594,0.51040861,98544.0,98543.0,0.8658]
[1740097997762,0.51040861,98544.0,98543.0,0.3286]
[1740097997959,0.51040861,98544.0,98543.0,0.3306]
[1740097998172,0.51040861,98544.0,98543.0,0.3336]
[1740097998563,0.55890861,98544.0,98543.0,0.3316]
[1740097998775,0.55890861,98544.0,98543.0,0.3286]
[1740097998974,0.55890861,98544.0,98543.0,0.3296]
[1740098005068,0.6615543,98544.0,98543.0,0.001]
[1740098005264,0.6615543,98544.0,98525.0,0.066266]
[1740098005265,0.1283,98542.0,98525.0,0.066266]
[1740098005509,0.21278485,98526.0,98525.0,0.066266]
[1740098005710,0.31543054,98526.0,98525.0,0.066266]
[1740098006759,0.26943054,98526.0,98525.0,0.066266]
[1740098007787,0.26943054,98526.0,98525.0,0.070266]
[1740098008200,0.26943054,98526.0,98525.0,0.075266]
[1740098019778,0.26943054,98526.0,98525.0,0.076967]
[1740098023403,0.26943054,98526.0,98525.0,0.071967]
[1740098023605,0.26943054,98526.0,98525.0,0.072967]
[1740098024003,0.26943054,98526.0,98525.0,0.076967]
[1740098025451,0.25488969,98526.0,98525.0,0.076967]
[1740098026458,0.34843054,98526.0,98525.0,0.076967]
[1740098027306,0.34843054,98526.0,98525.0,0.067967]
[1740098027447,0.34843054,98526.0,98525.0,0.069967]
[1740098028043,0.34843054,98526.0,98525.0,0.071967]
[1740098028242,0.26943054,98526.0,98525.0,0.071967]
[1740098029090,0.28846828,98526.0,98525.0,0.073967]
[1740098029665,0.28846828,98526.0,98525.0,0.071967]
[1740098029881,0.28846828,98526.0,98525.0,0.073967]
[1740098031713,0.43846828,98526.0,98525.0,0.073967]
[1740098031958,0.59397621,98526.0,98525.0,0.007701]
[1740098032750,0.59397621,98526.0,98525.0,0.005701]
[1740098033150,0.59397621,98526.0,98525.0,0.006701]
[1740098033539,0.59397621,98526.0,98525.0,0.001701]
[1740098034393,0.6137489,98526.0,98525.0,0.001701]
[1740098034594,0.31681185,98508.0,98507.0,0.066266]
[1740098034799,0.41945754,98508.0,98507.0,0.066266]
[1740098035635,0.43849528,98508.0,98507.0,0.066266]
[1740098035893,0.43849528,98508.0,98507.0,0.07330923]
[1740098036727,0.43849528,98508.0,98507.0,0.06630923]
[1740098036935,0.46854515,98508.0,98507.0,0.06630923]
[1740098037139,0.46854515,98508.0,98507.0,0.07130923]
[1740098037674,0.46854515,98508.0,98507.0,0.07630923]
[1740098037910,0.46854515,98508.0,98507.0,0.07130923]
[1740098038332,0.46854515,98508.0,98507.0,0.07530923]
[1740098038491,0.46854515,98508.0,98507.0,0.07030923]
[1740098038895,0.46854515,98508.0,98507.0,0.07530923]
[1740098042676,0.46854515,98508.0,98507.0,0.07030923]
[1740098043041,0.46854515,98508.0,98507.0,0.07330923]
[1740098043405,0.46854515,98508.0,98507.0,0.07030923]
[1740098043810,0.46854515,98508.0,98507.0,0.07230923]
[1740098044175,0.46854515,98508.0,98507.0,0.07030923]
[1740098044378,0.46854515,98508.0,98507.0,0.07330923]
[1740098044583,0.46854515,98508.0,98507.0,0.07501063]
[1740098048774,0.44950741,98508.0,98507.0,0.07501063]
[1740098052078,0.44950741,98508.0,98507.0,0.07101063]
[1740098052314,0.44950741,98508.0,98507.0,0.07401063]
[1740098052965,0.44950741,98508.0,98507.0,0.06801063]
[1740098053198,0.44950741,98508.0,98507.0,0.07301063]
[1740098053642,0.44950741,98508.0,98507.0,0.07101063]
[1740098053874,0.44950741,98508.0,98507.0,0.07301063]
[1740098056176,0.6393931,98508.0,98507.0,0.00674463]
[1740098056402,0.67052943,98508.0,98507.0,0.00674463]
[1740098057360,0.67052943,98508.0,98507.0,0.00474463]
[1740098057589,0.56888374,98508.0,98507.0,1e-08]
[1740098058249,0.302295,98493.0,98492.0,0.066266]
[1740098058468,0.41948154,98493.0,98492.0,0.06669793]
[1740098060127,0.43925423,98493.0,98492.0,0.06669793]
[1740098060528,0.43925423,98493.0,98492.0,0.06769793]
[1740098061554,0.43925423,98493.0,98492.0,0.06869793]
[1740098064103,0.45825094,98493.0,98492.0,0.06869793]
[1740098065501,0.45825094,98493.0,98492.0,0.06769793]
[1740098066660,0.45825094,98493.0,98492.0,0.06669793]
[1740098067177,0.15,98489.0,98480.0,0.066266]
[1740098067436,0.41949954,98481.0,98480.0,0.066266]
[1740098068107,0.45063848,98481.0,98480.0,0.066266]
[1740098068341,0.41949954,98481.0,98480.0,0.041266]
[1740098068963,0.41949954,98481.0,98480.0,0.042266]
[1740098069170,0.59430894,98481.0,98480.0,0.042266]
[1740098069376,0.59430894,98481.0,98480.0,0.041266]
[1740098069513,0.59430894,98481.0,98480.0,0.042266]
[1740098069714,0.59430894,98481.0,98480.0,0.043266]
[1740098070214,0.59430894,98481.0,98480.0,0.044266]
[1740098071000,0.59430894,98481.0,98480.0,0.043266]
[1740098071409,0.59430894,98481.0,98480.0,0.044266]
[1740098071991,0.60195406,98481.0,98480.0,0.044266]
[1740098072217,0.60195406,98481.0,98480.0,0.003]
[1740098073031,0.60195406,98481.0,98472.0,0.041266]
[1740098073032,0.302326,98473.0,98472.0,0.041266]
[1740098073246,0.152356,98453.0,98452.0,0.041266]
[1740098073458,0.40500169,98453.0,98452.0,0.041266]
[1740098073695,0.41529373,98453.0,98452.0,0.041266]
[1740098073914,0.43429044,98453.0,98452.0,0.041266]
[1740098074124,0.44883129,98453.0,98452.0,0.041266]
[1740098074324,0.44883129,98453.0,98452.0,0.046266]
[1740098074529,0.44883129,98453.0,98452.0,0.04130915]
[1740098074741,0.46860398,98453.0,98452.0,0.04130915]
[1740098075975,0.47160398,98453.0,98452.0,0.04130915]
[1740098076347,0.47060398,98453.0,98452.0,0.04130915]
[1740098076512,0.47260398,98453.0,98452.0,0.04130915]
[1740098076718,0.50288041,98453.0,98452.0,0.04130915]
[1740098076928,0.50088041,98453.0,98452.0,0.04130915]
[1740098077282,0.49888041,98453.0,98452.0,0.04130915]
[1740098077482,0.50088041,98453.0,98452.0,0.04130915]
[1740098077720,0.47060398,98453.0,98452.0,0.04130915]
[1740098078132,0.46860398,98453.0,98452.0,0.04130915]
[1740098078504,0.4761627,98453.0,98452.0,0.04130915]
[1740098079487,0.64343146,98453.0,98452.0,0.04130915]
[1740098082446,0.62889061,98453.0,98452.0,0.04130915]
[1740098082716,0.47653461,98453.0,98452.0,0.11910915]
[1740098082907,0.62889061,98453.0,98452.0,0.11910915]
[1740098083557,0.62989061,98453.0,98452.0,0.04130915]
[1740098083935,0.64443146,98453.0,98452.0,0.04330915]
[1740098084643,0.64343146,98453.0,98452.0,0.04330915]
[1740098085073,0.64343146,98453.0,98452.0,0.04530915]
[1740098089508,0.67372143,98453.0,98452.0,0.04530915]
[1740098090963,0.67372143,98453.0,98452.0,0.04330915]
[1740098091112,0.67472143,98453.0,98452.0,0.04330915]
[1740098091636,0.67372143,98453.0,98452.0,0.04130915]
[1740098091833,0.67372143,98453.0,98452.0,0.04230915]
[1740098092056,0.67372143,98453.0,98452.0,0.04330915]
[1740098092300,0.67372143,98453.0,98452.0,0.04230915]
[1740098092472,0.67372143,98453.0,98452.0,0.04330915]
[1740098093928,0.67372143,98453.0,98452.0,0.04230915]
[1740098094362,0.67372143,98453.0,98452.0,0.04330915]
[1740098094753,0.67372143,98453.0,98452.0,0.04230915]
[1740098094936,0.67372143,98453.0,98452.0,0.04330915]
[1740098095214,0.67372143,98453.0,98452.0,0.04430915]
[1740098095361,0.67372143,98453.0,98452.0,0.04130915]
[1740098096049,0.67372143,98453.0,98452.0,4.315e-05]
[1740098096203,0.302375,98441.0,98440.0,0.041266]
[1740098096456,0.41956154,98441.0,98440.0,0.04130925]
[1740098096855,0.56287453,98441.0,98440.0,0.04130925]
[1740098097204,0.58264722,98441.0,98440.0,0.04130925]
[1740098097561,0.6319339,98441.0,98440.0,0.04130925]
[1740098097764,0.61739305,98441.0,98440.0,0.04130925]
[1740098097998,0.61739305,98441.0,98440.0,0.11640925]
[1740098098567,0.21237236,98441.0,98440.0,0.26878625]
[1740098098788,0.36474736,98441.0,98440.0,0.11640925]
[1740098098993,0.21537236,98441.0,98440.0,0.11640925]
[1740098099214,0.36774736,98441.0,98440.0,0.12040925]
[1740098099400,0.46739305,98441.0,98440.0,0.12040925]
[1740098099822,0.46739305,98441.0,98440.0,0.12540925]
[1740098100002,0.46739305,98441.0,98440.0,0.12140925]
[1740098100399,0.46739305,98441.0,98440.0,0.04930925]
[1740098100603,0.4819339,98441.0,98440.0,0.04930925]
[1740098101047,0.4819339,98441.0,98440.0,0.04430925]
[1740098101048,0.6319339,98441.0,98440.0,0.04430925]
[1740098101513,0.6319339,98441.0,98440.0,0.04830925]
[1740098101675,0.6319339,98441.0,98440.0,0.04530925]
[1740098101898,0.6319339,98441.0,98440.0,0.04430925]
[1740098102302,0.60164393,98441.0,98440.0,0.04130925]
[1740098103103,0.60164393,98441.0,98440.0,0.02299885]
[1740098103736,0.60164393,98441.0,98440.0,0.02399885]
[1740098104373,0.60164393,98441.0,98440.0,0.02599885]
[1740098105249,0.58947612,98441.0,98440.0,0.02599885]
[1740098105951,0.42256027,98441.0,98440.0,0.02599885]
[1740098106183,0.42256027,98441.0,98440.0,0.10879885]
[1740098106410,0.57493527,98441.0,98440.0,0.10879885]
[1740098106626,0.57493527,98441.0,98440.0,0.02599885]
[1740098107049,0.57493527,98441.0,98440.0,0.02770205]
[1740098107241,0.57578687,98441.0,98440.0,0.02770205]
[1740098107366,0.59032772,98441.0,98440.0,0.02770205]
[1740098107833,0.59032772,98441.0,98440.0,0.02599885]
[1740098126577,0.62151025,98441.0,98440.0,0.02599885]
[1740098126751,0.65191637,98441.0,98440.0,0.02599885]
[1740098127406,0.65191637,98441.0,98440.0,0.02399885]
[1740098127720,0.62251025,98441.0,98440.0,0.02299885]
[1740098128168,0.62151025,98441.0,98440.0,0.02299885]
[1740098128369,0.62351025,98441.0,98440.0,0.02299885]
[1740098128572,0.62551025,98441.0,98440.0,0.02299885]
[1740098128908,0.62351025,98441.0,98440.0,0.02299885]
[1740098129213,0.62351025,98441.0,98431.0,0.0002]
[1740098129214,0.302389,98432.0,98431.0,0.0002]
[1740098129329,0.41957554,98432.0,98431.0,0.0002526]
[1740098129531,0.55304742,98432.0,98431.0,0.0002526]
[1740098130716,0.55304742,98432.0,98431.0,0.0012526]
[1740098131065,0.55304742,98432.0,98431.0,0.0022526]
[1740098131267,0.57204413,98432.0,98431.0,0.0022526]
[1740098131715,0.57964901,98432.0,98431.0,0.0022526]
[1740098142097,0.57964901,98432.0,98431.0,0.0039558]
[1740098143396,0.41271916,98432.0,98431.0,0.0039558]
[1740098143681,0.41271916,98432.0,98431.0,0.0022526]
[1740098144039,0.54611145,98432.0,98431.0,0.0022526]
[1740098144242,0.39372245,98432.0,98431.0,0.0022526]
[1740098144849,0.24372245,98432.0,98431.0,0.0022526]
[1740098146455,0.26272141,98432.0,98431.0,0.3308526]
[1740098148343,0.41511041,98432.0,98431.0,0.3308526]
[1740098149585,0.57965126,98432.0,98431.0,0.3308526]
[1740098152430,0.57965126,98432.0,98431.0,0.0022526]
[1740098154863,0.57965126,98432.0,98431.0,0.0039558]
[1740098158697,0.5606523,98432.0,98431.0,0.0039558]
[1740098161915,0.57967125,98432.0,98431.0,0.0039558]
[1740098168480,0.68231694,98432.0,98431.0,0.0039558]
[1740098168680,0.71351335,98432.0,98431.0,0.0029558]
[1740098168877,0.71351335,98432.0,98431.0,0.0019558]
[1740098169180,0.61286766,98432.0,98431.0,0.0019558]
[1740098169429,0.61086766,98432.0,98431.0,0.0019558]
[1740098169803,0.61386766,98432.0,98431.0,0.0019558]
[1740098171416,0.58267125,98432.0,98431.0,0.0019558]
[1740098171644,0.61386105,98432.0,98431.0,0.0019558]
[1740098172014,0.61286105,98432.0,98431.0,0.0019558]
[1740098172242,0.57967125,98432.0,98431.0,0.0019558]
[1740098172439,0.58067125,98432.0,98431.0,0.0019558]
[1740098172759,0.58167125,98432.0,98431.0,0.0019558]
[1740098173397,0.58067125,98432.0,98431.0,0.0019558]
[1740098173571,0.57967125,98432.0,98431.0,0.0019558]
[1740098173775,0.57967125,98432.0,98431.0,0.0029558]
[1740098174887,0.58167125,98432.0,98431.0,0.0029558]
[1740098175393,0.57967125,98432.0,98431.0,0.0029558]
[1740098175722,0.57967125,98432.0,98431.0,0.0039558]
[1740098201540,0.68231694,98432.0,98431.0,0.0039558]
[1740098201760,0.71352096,98432.0,98431.0,0.0039558]
[1740098201939,0.79012096,98432.0,98431.0,0.0039558]
[1740098202353,0.83692096,98432.0,98431.0,8e-07]
[1740098202480,0.81790201,98432.0,98431.0,8e-07]
[1740098202894,0.66751301,98432.0,98405.0,0.3286]
[1740098203100,0.302429,98406.0,98405.0,0.3287299]
[1740098203307,0.40507469,98406.0,98405.0,0.3287299]
[1740098203868,0.41961554,98406.0,98405.0,0.3287299]
[1740098204084,0.46902621,98406.0,98405.0,0.3287299]
[1740098204235,0.48684017,98406.0,98405.0,0.3287299]
[1740098205244,0.48684017,98406.0,98405.0,0.3307299]
[1740098205447,0.05701555,98406.0,98405.0,0.4135299]
[1740098205648,0.05701555,98406.0,98405.0,0.4175299]
[1740098205865,0.05701555,98406.0,98405.0,0.4135299]
[1740098206201,0.05701555,98406.0,98405.0,0.4155299]
[1740098206416,0.152429,98406.0,98405.0,0.4155299]
[1740098206971,0.16002294,98406.0,98405.0,0.4155299]
[1740098207173,0.20938186,98406.0,98405.0,0.4155299]
[1740098209117,0.31202755,98406.0,98405.0,0.3327299]
[1740098209959,0.3265684,98406.0,98405.0,0.3327299]
[1740098210783,0.3265684,98406.0,98405.0,0.0041299]
[1740098213352,0.4765684,98406.0,98405.0,0.0041299]
[1740098216159,0.56663626,98406.0,98405.0,0.0041299]
[1740098216548,0.4765684,98406.0,98405.0,0.0041299]
[1740098216952,0.4765684,98406.0,98405.0,0.0021299]
[1740098217464,0.4765684,98406.0,98405.0,0.0031299]
[1740098217883,0.4839284,98406.0,98405.0,0.0031299]
[1740098218608,0.4839284,98406.0,98405.0,0.0011299]
[1740098219014,0.4839284,98406.0,98405.0,0.0021299]
[1740098222594,0.4839284,98406.0,98405.0,0.0011299]
[1740098222793,0.4869284,98406.0,98405.0,0.0001299]
[1740098223179,0.4889284,98406.0,98405.0,0.0001299]
[1740098223383,0.57630026,98406.0,98405.0,0.0001299]
[1740098223622,0.57830026,98406.0,98405.0,0.0001299]
[1740098223798,0.4879284,98406.0,98405.0,0.0001299]
[1740098225383,0.31697585,98402.0,98401.0,0.003956]
[1740098225706,0.41962154,98402.0,98401.0,0.003956]
[1740098226177,0.42721548,98402.0,98401.0,0.003956]
[1740098226658,0.42821548,98402.0,98401.0,0.003956]
[1740098227115,0.4775744,98402.0,98401.0,0.003956]
[1740098231687,0.4849344,98402.0,98401.0,0.003956]
[1740098234458,0.4775744,98402.0,98401.0,0.003956]
[1740098234658,0.4849344,98402.0,98401.0,0.003956]
[1740098238121,0.51611632,98402.0,98401.0,0.003956]
[1740098238547,0.59391632,98402.0,98401.0,1e-06]
[1740098239201,0.59591632,98402.0,98401.0,1e-06]
[1740098239631,0.59291632,98402.0,98401.0,1e-06]
[1740098239839,0.64451632,98402.0,98401.0,1e-06]
[1740098241137,0.152465,98383.0,98382.0,0.3286]
[1740098241340,0.41965154,98383.0,98382.0,0.3286]
[1740098242330,0.41965154,98383.0,98382.0,0.3326]
[1740098242556,0.41965154,98383.0,98382.0,0.3356]
[1740098242770,0.4766044,98383.0,98382.0,0.3356]
[1740098243624,0.15959855,98383.0,98382.0,0.3356]
[1740098243796,0.05695286,98383.0,98382.0,0.615766]
[1740098244229,0.05695286,98383.0,98382.0,0.62588545]
[1740098244448,0.05695286,98383.0,98382.0,1.16308545]
[1740098244823,0.05695286,98383.0,98382.0,1.16008545]
[1740098245228,0.05795286,98383.0,98382.0,1.16708545]
[1740098245428,0.05695286,98383.0,98382.0,1.15608545]
[1740098245656,0.05795286,98383.0,98382.0,1.16308545]
[1740098245802,0.05895286,98383.0,98382.0,1.17008545]
[1740098245982,0.05135892,98383.0,98382.0,1.17008545]
[1740098246185,0.001,98383.0,98382.0,1.16308545]
[1740098248140,0.05694642,98404.0,98382.0,1.16308545]
[1740098248141,0.05694642,98404.0,98403.0,0.277334]
[1740098248346,0.05694642,98404.0,98403.0,1.143134]
[1740098249030,0.04935418,98404.0,98403.0,1.143134]
[1740098249435,0.04935418,98404.0,98403.0,1.147134]
[1740098249947,0.203202,98424.0,98405.0,0.152431]
[1740098250148,0.01454085,98428.0,98405.0,0.152431]
[1740098250357,0.152423,98410.0,98404.0,0.0773]
[1740098250524,0.01454085,98428.0,98405.0,0.152431]
[1740098250730,0.203219,98416.0,98405.0,0.152431]
[1740098250934,0.15242,98412.0,98405.0,0.152431]
[1740098251316,0.01898533,98406.0,98405.0,0.159431]
[1740098252301,0.01898533,98406.0,98405.0,0.166431]
[1740098253403,0.01898533,98406.0,98405.0,1.032231]
[1740098256260,4.318e-05,98406.0,98405.0,1.032231]
[1740098256463,4.318e-05,98406.0,98405.0,0.8798]
[1740098256664,4.318e-05,98406.0,98405.0,1.032231]
[1740098257485,4.318e-05,98406.0,98405.0,0.8798]
[1740098257707,0.01898533,98406.0,98405.0,1.032231]
[1740098257911,0.01898533,98406.0,98405.0,0.8798]
[1740098258845,0.15247218,98406.0,98405.0,0.8798]
[1740098259207,0.15332358,98406.0,98405.0,0.8798]
[1740098259415,0.25596927,98406.0,98405.0,0.3426]
[1740098259615,0.27051012,98406.0,98405.0,0.3426]
[1740098260731,0.28945227,98406.0,98405.0,0.3426]
[1740098260932,0.29702109,98406.0,98405.0,0.3426]
[1740098264064,0.32730661,98406.0,98405.0,0.3426]
[1740098269626,0.17487761,98406.0,98405.0,0.3426]
[1740098269834,0.05769107,98406.0,98405.0,0.495031]
[1740098270247,0.05769107,98406.0,98405.0,0.576131]
[1740098270909,0.02740555,98406.0,98405.0,0.576131]
[1740098271311,0.02740555,98406.0,98405.0,1.113331]
[1740098272631,0.05769107,98406.0,98405.0,1.113331]
[1740098272764,0.05769107,98406.0,98405.0,0.9609]
[1740098273768,0.05769107,98406.0,98405.0,0.8798]
[1740098274460,0.05769107,98406.0,98405.0,1.032231]
[1740098276498,0.05769107,98406.0,98405.0,0.8798]
[1740098276669,0.05769107,98406.0,98405.0,1.032231]
[1740098276870,0.05769107,98406.0,98405.0,0.8798]
[1740098284127,0.21012007,98406.0,98405.0,0.8798]
[1740098289147,0.21012007,98406.0,98405.0,0.3426]
[1740098290591,0.2202124,98406.0,98405.0,0.3426]
[1740098291191,0.2202124,98406.0,98405.0,0.33471923]
[1740098291397,0.21012007,98406.0,98405.0,0.33471923]
[1740098291946,0.22033168,98406.0,98405.0,0.33471923]
[1740098292652,0.21012007,98406.0,98405.0,0.33471923]
[1740098294573,0.22053086,98406.0,98405.0,0.33471923]
[1740098297308,0.21012007,98406.0,98405.0,0.33471923]
[1740098299417,0.22027701,98406.0,98405.0,0.33471923]
[1740098299841,0.21012007,98406.0,98405.0,0.33471923]
[1740098301899,0.22040138,98406.0,98405.0,0.33471923]
[1740098302214,0.21012007,98406.0,98405.0,0.33471923]
[1740098324362,0.32730661,98406.0,98405.0,0.33471923]
[1740098325020,0.47730661,98406.0,98405.0,0.33471923]
[1740098325762,0.47730661,98406.0,98405.0,0.3286]
[1740098326177,0.47730661,98406.0,98405.0,0.3296]
[1740098326856,0.47730661,98406.0,98405.0,0.3316]
[1740098331183,0.42807894,98406.0,98405.0,0.3316]
[1740098331578,0.47753012,98406.0,98405.0,0.3316]
[1740098345511,0.44709862,98406.0,98405.0,0.3316]
[1740098345892,0.28255777,98406.0,98405.0,0.3316]
[1740098346089,0.02748308,98406.0,98405.0,1.100431]